bitfinex/quotes_ETHUSD_20250626
["timestamp","ask_amount","ask_price","bid_price","bid_amount"]
[1750968108237,19.75331931,2432.0,2431.9,0.002]
[1750968108677,15.80716141,2432.0,2431.9,0.002]
[1750968108971,25.99487755,2432.0,2431.9,0.002]
[1750968112271,21.32803545,2432.0,2431.9,0.002]
[1750968112491,19.74731931,2432.0,2431.9,0.002]
[1750968113473,19.74531931,2432.0,2431.9,0.002]
[1750968114376,1.14531931,2432.0,2431.9,0.002]
[1750968114549,1.14531931,2432.0,2431.9,0.7714]
[1750968114550,10.9148421,2432.0,2431.9,0.7714]
[1750968114870,12.55632631,2432.0,2431.9,0.002]
[1750968115074,13.49604562,2432.0,2431.9,0.002]
[1750968121952,2.58120352,2432.0,2431.9,0.002]
[1750968122279,15.28904562,2432.0,2431.9,0.002]
[1750968124082,26.04044562,2432.0,2431.9,0.002]
[1750968124383,34.56490256,2432.0,2431.9,0.002]
[1750968124550,42.43490256,2432.0,2431.9,0.002]
[1750968124985,24.56304562,2432.0,2431.9,0.002]
[1750968125182,32.06756141,2432.0,2431.9,0.002]
[1750968127872,27.40571931,2432.0,2431.9,0.789]
[1750968128179,32.06756141,2432.0,2431.9,0.002]
[1750968139193,31.41581835,2432.0,2431.9,0.002]
[1750968139601,22.89136141,2432.0,2431.9,0.002]
[1750968139761,25.59166749,2432.0,2431.9,0.002]
[1750968141860,35.59166749,2432.0,2431.9,0.002]
[1750968143671,39.90566749,2432.0,2431.9,0.002]
[1750968143872,35.59166749,2432.0,2431.9,0.002]
[1750968151308,4.66268764,2431.5,2431.4,0.002]
[1750968151503,21.11968764,2431.5,2431.4,0.002]
[1750968151703,22.05940695,2431.5,2431.4,0.002]
[1750968152220,15.60571931,2431.5,2431.4,0.002]
[1750968152417,15.60571931,2431.5,2431.4,0.7528]
[1750968152418,14.666,2431.5,2431.4,0.7528]
[1750968152709,6.798,2431.6,2431.4,0.7528]
[1750968152910,6.798,2431.6,2431.4,0.9584]
[1750968153114,6.798,2431.6,2431.5,0.7631]
[1750968153415,0.2056,2431.9,2431.5,0.7631]
[1750968153709,9.659,2432.0,2431.7,0.2056]
[1750968153912,6.797,2431.9,2431.8,0.7804]
[1750968154423,6.797,2431.9,2431.8,0.986]
[1750968154710,6.797,2431.9,2431.8,1.0011]
[1750968155273,10.0,2432.3,2431.9,0.7955]
[1750968155512,6.797,2432.2,2431.9,0.7955]
[1750968155812,7.74382644,2432.2,2431.9,0.7955]
[1750968156311,10.0,2432.3,2431.9,0.7955]
[1750968156512,6.797,2432.2,2431.9,0.7955]
[1750968156902,6.797,2432.1,2431.9,0.7955]
[1750968157108,6.797,2432.0,2431.9,0.7955]
[1750968157483,1.1512697,2432.4,2431.9,0.7955]
[1750968157685,6.797,2432.3,2431.9,0.7955]
[1750968158016,6.796,2432.3,2431.9,0.7955]
[1750968158179,6.796,2432.3,2432.2,0.2048]
[1750968158386,6.796,2432.3,2432.2,1.0298]
[1750968159285,6.796,2432.4,2432.2,1.0298]
[1750968161607,14.663,2432.6,2432.2,1.0298]
[1750968161916,14.663,2432.6,2432.5,0.2048]
[1750968162117,14.663,2432.6,2432.5,1.0092]
[1750968162118,7.868,2432.6,2432.5,1.0092]
[1750968166130,6.795,2432.8,2432.6,0.7815]
[1750968166424,0.2048,2433.1,2432.7,0.2048]
[1750968166630,6.794,2433.0,2432.7,0.2048]
[1750968166797,0.2048,2433.1,2432.8,0.7532]
[1750968166997,0.94182313,2433.3,2432.9,0.2048]
[1750968167222,6.793,2433.1,2433.0,0.2048]
[1750968167726,6.793,2433.2,2433.0,0.2048]
[1750968169311,0.94282313,2433.4,2433.1,0.8234]
[1750968169518,0.001,2433.4,2433.1,1.0282]
[1750968169827,0.001,2433.4,2433.1,1.98346569]
[1750968169987,0.001,2433.4,2433.1,1.0282]
[1750968171521,0.001,2433.4,2433.1,0.8234]
[1750968171720,6.792,2433.3,2433.1,0.8234]
[1750968173541,0.2058,2433.4,2433.1,0.8234]
[1750968173705,0.001,2433.4,2433.3,0.2048]
[1750968173892,0.001,2433.4,2433.1,0.8234]
[1750968174228,0.001,2433.4,2433.1,1.0282]
[1750968181124,0.001,2433.4,2433.1,0.2048]
[1750968181325,0.2058,2433.4,2432.9,1.0091]
[1750968183527,4.86836413,2433.3,2432.7,0.8208]
[1750968183729,0.2048,2433.1,2432.7,1.0256]
[1750968186512,4.31478403,2433.1,2432.7,0.2048]
[1750968186716,11.97805887,2433.1,2432.4,0.7892]
[1750968186935,0.2048,2433.0,2432.5,0.2048]
[1750968190423,4.31503498,2433.0,2432.5,0.2048]
[1750968191451,4.11059838,2432.8,2432.1,0.8227]
[1750968191655,6.787,2432.7,2432.4,0.2048]
[1750968192224,10.89766508,2432.7,2432.4,0.2048]
[1750968193426,10.89766508,2432.7,2432.1,0.8227]
[1750968193427,4.11095043,2432.6,2432.1,0.8227]
[1750968193631,4.31575043,2432.6,2432.1,1.0275]
[1750968194033,0.2048,2432.6,2432.1,1.0275]
[1750968200540,0.2048,2432.6,2432.1,2.13025]
[1750968200739,0.774,2432.5,2432.1,0.2048]
[1750968200942,4.88499924,2432.5,2432.1,0.2048]
[1750968201341,4.11123639,2432.4,2431.6,0.8085]
[1750968201541,0.2048,2432.2,2431.8,0.2056]
[1750968202328,0.774,2432.1,2431.8,0.2056]
[1750968205133,0.2048,2432.0,2431.6,0.2056]
[1750968207587,7.868,2432.1,2431.5,8.52445694]
[1750968207737,14.653,2432.1,2431.8,0.2056]
[1750968208265,7.868,2432.1,2431.8,0.2056]
[1750968208469,7.868,2432.1,2431.9,0.7604]
[1750968208769,7.868,2432.1,2432.0,0.2048]
[1750968209343,7.868,2432.1,2431.7,0.7957]
[1750968209656,7.868,2432.1,2431.8,0.2056]
[1750968211555,8.6737,2432.1,2431.8,0.2056]
[1750968213569,8.8785,2432.1,2431.7,0.2056]
[1750968213764,12.99017891,2432.1,2431.7,0.2056]
[1750968213979,8.8785,2432.1,2431.7,0.2056]
[1750968217454,2.5834,2432.0,2431.7,0.2056]
[1750968217791,0.7984,2431.7,2431.4,0.2076]
[1750968218989,4.11261492,2431.6,2431.4,0.002]
[1750968219155,6.784,2431.5,2431.4,0.002]
[1750968225146,12.08674109,2431.5,2431.4,0.002]
[1750968225308,6.9886,2431.5,2431.4,0.002]
[1750968225491,0.2056,2431.5,2431.4,0.002]
[1750968225698,6.9886,2431.5,2431.4,0.002]
[1750968226202,0.2056,2431.5,2431.4,0.002]
[1750968226385,6.783,2431.5,2431.4,0.002]
[1750968226801,0.2056,2431.7,2431.4,0.002]
[1750968227016,1.785,2431.8,2431.4,0.2076]
[1750968227177,6.783,2431.7,2431.4,0.2076]
[1750968228433,4.11255655,2431.6,2431.4,0.2076]
[1750968228727,0.2056,2431.5,2431.4,0.002]
[1750968229230,4.31828764,2431.5,2431.4,0.002]
[1750968232761,12.18628764,2431.5,2431.4,0.002]
[1750968233041,12.73628764,2431.5,2431.4,0.002]
[1750968233247,16.12418995,2431.5,2431.4,0.002]
[1750968235714,16.92208995,2431.5,2431.4,0.002]
[1750968236223,23.70408995,2431.5,2431.4,0.002]
[1750968240243,23.15408995,2431.5,2431.4,0.002]
[1750968240429,8.8715,2431.5,2431.4,0.002]
[1750968240635,21.54618764,2431.5,2431.4,0.002]
[1750968241844,14.8546,2431.5,2431.4,0.002]
[1750968243249,19.72068764,2431.5,2431.4,0.002]
[1750968243412,20.27068764,2431.5,2431.4,0.002]
[1750968243612,23.73956889,2431.5,2431.4,0.002]
[1750968245436,24.68595632,2431.5,2431.4,0.002]
[1750968246005,34.68595632,2431.5,2431.4,0.002]
[1750968255461,49.29495632,2431.5,2431.4,0.002]
[1750968256342,44.96695632,2431.5,2431.4,0.002]
[1750968257016,37.63595632,2431.5,2431.4,0.002]
[1750968257346,46.19595632,2431.5,2431.4,0.002]
[1750968257554,46.74595632,2431.5,2431.4,0.002]
[1750968257719,38.18595632,2431.5,2431.4,0.002]
[1750968257923,46.74595632,2431.5,2431.4,0.002]
[1750968258971,38.18595632,2431.5,2431.4,0.002]
[1750968259157,46.74595632,2431.5,2431.4,0.002]
[1750968259654,19.30098743,2431.5,2431.4,0.002]
[1750968259859,0.94638743,2431.5,2431.4,0.7959]
[1750968260043,0.2056,2431.7,2431.4,0.7959]
[1750968260355,6.778,2431.6,2431.4,0.7959]
[1750968264770,5.88968764,2431.5,2431.4,0.002]
[1750968265180,23.62454458,2431.5,2431.4,0.002]
[1750968267047,12.53068764,2431.5,2431.4,0.002]
[1750968267374,20.53268764,2431.5,2431.4,0.002]
[1750968269675,7.868,2431.5,2431.4,0.002]
[1750968269873,16.6256,2431.5,2431.4,0.002]
[1750968270578,16.42,2431.5,2431.4,0.002]
[1750968271646,7.868,2431.5,2431.4,0.002]
[1750968272072,14.642,2431.5,2431.4,0.002]
[1750968272754,18.75468764,2431.5,2431.4,0.002]
[1750968272961,21.61195596,2431.5,2431.4,0.002]
[1750968273151,22.40855596,2431.5,2431.4,0.002]
[1750968273949,21.06195596,2431.5,2431.4,0.002]
[1750968274255,18.75468764,2431.5,2431.4,0.002]
[1750968274978,14.642,2431.5,2431.4,0.002]
[1750968277870,7.868,2431.5,2431.4,0.002]
[1750968278080,14.641,2431.5,2431.4,0.002]
[1750968278691,6.773,2431.5,2431.4,0.002]
[1750968280983,0.2056,2431.6,2431.4,0.002]
[1750968281187,1.777,2431.7,2431.5,0.7631]
[1750968281390,6.772,2431.6,2431.5,0.7631]
[1750968281755,4.11235216,2431.7,2431.4,0.002]
[1750968281955,4.11256461,2431.6,2431.4,0.002]
[1750968282155,6.772,2431.5,2431.4,0.002]
[1750968282388,10.88468764,2431.5,2431.4,0.002]
[1750968283088,6.772,2431.5,2431.4,0.002]
[1750968286363,10.88468764,2431.5,2431.4,0.002]
[1750968286692,6.772,2431.5,2431.4,0.002]
[1750968288401,6.772,2431.5,2431.4,0.7659]
[1750968292819,0.94561743,2431.9,2431.4,0.7659]
[1750968293018,6.77,2432.3,2431.6,0.805]
[1750968293203,6.77,2432.2,2431.7,0.805]
[1750968294187,0.94560269,2432.4,2431.7,0.805]
[1750968294420,6.77,2432.1,2431.7,0.805]
[1750968295220,0.94560269,2432.5,2431.7,0.805]
[1750968295519,6.769,2432.4,2431.7,0.805]
[1750968295709,6.769,2432.4,2431.8,1.17381457]
[1750968295918,6.769,2432.4,2431.9,0.805]
[1750968296312,6.769,2432.3,2431.9,0.805]
[1750968297313,2.71960269,2432.5,2431.9,0.805]
[1750968297510,6.769,2432.4,2431.9,0.805]
[1750968300734,7.868,2432.7,2431.9,0.805]
[1750968300913,7.868,2432.7,2432.0,0.7561]
[1750968301108,7.868,2432.7,2432.1,1.07561]
[1750968301302,7.868,2432.7,2432.2,0.7918]
[1750968302639,0.001,2432.9,2432.4,8.52445694]
[1750968302800,0.001,2432.9,2432.8,9.32095694]
[1750968303001,0.001,2432.9,2432.8,11.29875694]
[1750968303202,0.001,2432.9,2432.8,22.42863263]
[1750968303426,0.001,2433.1,2433.0,4.11015207]
[1750968303733,0.001,2433.1,2433.0,31.03620107]
[1750968303927,0.001,2433.1,2433.0,8.2775]
[1750968304230,0.001,2433.1,2433.0,18.462014]
[1750968304527,0.001,2433.1,2433.0,22.47533824]
[1750968304725,0.001,2433.1,2433.0,23.07533824]
[1750968304917,0.001,2433.1,2433.0,22.52533824]
[1750968305230,0.001,2433.1,2433.0,24.29633824]
[1750968305924,0.001,2433.1,2433.0,15.75833824]
[1750968306130,0.001,2433.1,2433.0,18.36733824]
[1750968306832,0.001,2433.1,2433.0,44.66182424]
[1750968307035,0.001,2433.1,2433.0,44.9650506]
[1750968307334,0.001,2433.1,2433.0,39.5253986]
[1750968308028,0.001,2433.1,2433.0,44.9650506]
[1750968309795,0.001,2433.1,2433.0,14.9650506]
[1750968310001,0.001,2433.1,2433.0,49.07520267]
[1750968310198,0.001,2433.4,2433.3,35.41734533]
[1750968310412,0.001,2433.4,2433.3,21.1783202]
[1750968310731,0.001,2433.4,2433.3,10.9625]
[1750968311120,0.001,2433.4,2433.3,19.4975]
[1750968311828,0.001,2433.4,2433.3,50.0475]
[1750968312698,0.001,2433.4,2433.3,54.15714533]
[1750968314130,0.001,2434.3,2433.5,30.0]
[1750968314333,0.001,2434.3,2433.5,60.97508343]
[1750968314629,0.001,2434.3,2433.5,57.07057585]
[1750968314934,0.001,2434.3,2433.5,61.38914631]
[1750968315131,0.001,2434.3,2433.5,56.96204473]
[1750968315436,0.001,2434.3,2433.5,63.72304473]
[1750968315824,0.001,2434.3,2433.5,64.04083873]
[1750968316209,0.001,2434.3,2433.5,68.15014631]
[1750968316950,0.001,2434.3,2433.5,68.70014631]
[1750968317128,0.001,2434.3,2433.8,31.3403]
[1750968317305,0.001,2434.3,2433.8,40.70479896]
[1750968317625,0.001,2434.3,2433.8,40.12579196]
[1750968318012,0.001,2434.3,2433.8,40.90959896]
[1750968318212,0.001,2434.3,2433.8,50.90959896]
[1750968318736,0.001,2434.3,2433.8,40.10302896]
[1750968319052,0.001,2434.3,2433.8,39.84302896]
[1750968319733,0.001,2434.3,2433.8,34.66469896]
[1750968319935,0.001,2434.3,2433.8,47.84450001]
[1750968320627,0.001,2434.3,2433.8,32.47340096]
[1750968320834,0.001,2434.3,2433.8,26.61546996]
[1750968321139,0.001,2434.3,2433.8,31.09031996]
[1750968321454,0.001,2434.3,2433.8,28.02541996]
[1750968322022,0.001,2434.3,2433.8,23.47459896]
[1750968322953,0.001,2434.3,2434.1,0.81]
[1750968323170,0.001,2434.3,2434.2,19.607]
[1750968323525,0.001,2434.3,2434.2,19.8118]
[1750968323722,0.001,2434.3,2434.2,11.2858]
[1750968324556,0.001,2434.3,2434.2,0.2048]
[1750968328130,0.8142,2434.3,2434.2,0.2048]
[1750968328759,4.92227884,2434.3,2433.8,10.83249896]
[1750968328958,4.92227884,2434.3,2434.1,0.2048]
[1750968329536,4.90176156,2434.1,2433.5,6.756]
[1750968329751,4.90176156,2434.1,2433.9,0.2048]
[1750968329964,4.90186343,2434.0,2433.1,10.7824]
[1750968330166,4.90186343,2434.0,2433.7,0.2048]
[1750968330851,4.10866907,2433.9,2433.7,0.2048]
[1750968331435,4.10880105,2433.8,2433.7,0.2048]
[1750968331636,0.7934,2433.8,2433.7,0.2048]
[1750968332166,4.90220105,2433.8,2433.7,0.2048]
[1750968332537,4.90220105,2433.8,2433.2,10.88062664]
[1750968332863,4.90220105,2433.8,2433.5,0.2048]
[1750968333170,0.7934,2433.8,2433.5,0.2048]
[1750968334869,4.10897616,2433.7,2433.5,0.2048]
[1750968335365,4.90231452,2433.8,2433.5,0.2048]
[1750968335566,0.7934,2433.8,2433.5,0.2048]
[1750968338371,4.90221346,2433.8,2433.5,0.2048]
[1750968339087,4.93263044,2433.5,2432.6,0.7761]
[1750968339288,0.8232,2433.5,2433.1,0.2048]
[1750968341193,4.93252006,2433.5,2433.1,0.2048]
[1750968341583,0.8232,2433.5,2433.1,0.2048]
[1750968342692,0.8232,2433.5,2433.0,0.7842]
[1750968342886,0.8232,2433.5,2433.3,0.2048]
[1750968343482,8.0728,2433.7,2433.3,0.2048]
[1750968343683,7.868,2433.7,2433.4,0.2048]
[1750968344166,0.001,2434.3,2433.7,15.635625]
[1750968344404,0.001,2434.3,2434.2,8.50304008]
[1750968344605,0.001,2434.3,2434.2,9.16313655]
[1750968344900,0.001,2434.3,2434.2,9.96674015]
[1750968345417,0.001,2434.3,2434.2,18.50304008]
[1750968345599,0.001,2434.3,2434.2,27.19057409]
[1750968346400,0.001,2434.3,2434.2,18.68753401]
[1750968346806,0.001,2434.3,2434.2,59.746161]
[1750968347007,0.001,2434.3,2434.2,61.02427359]
[1750968347325,1.769,2435.5,2434.3,46.44389052]
[1750968347525,1.769,2435.5,2434.3,52.22621476]
[1750968347812,0.8122,2435.6,2434.8,11.3599]
[1750968348009,2.5812,2435.9,2434.8,11.3599]
[1750968348217,0.94560158,2435.8,2434.8,14.10493341]
[1750968348522,0.94560158,2435.7,2434.9,1.55106837]
[1750968348718,0.94560158,2435.6,2435.1,10.8099]
[1750968349018,0.94560158,2435.8,2435.4,0.8099]
[1750968349178,0.94560158,2436.2,2435.4,10.8099]
[1750968349513,2.5812,2436.5,2435.5,2.49409651]
[1750968349713,0.8122,2436.5,2435.7,10.0]
[1750968350215,0.8122,2436.5,2435.8,0.7743]
[1750968350430,0.7733,2436.7,2435.8,0.7743]
[1750968350631,0.7733,2436.7,2435.9,1.07743]
[1750968351911,3.24807943,2436.8,2436.4,0.7743]
[1750968352089,0.001,2437.2,2436.7,14.87814217]
[1750968352488,0.001,2437.2,2436.7,11.08077869]
[1750968352690,0.001,2437.2,2436.9,10.0]
[1750968352965,0.001,2437.2,2436.7,1.08077869]
[1750968353105,1.787,2437.2,2436.4,10.8261]
[1750968353409,0.26106,2437.1,2436.4,10.8261]
[1750968354315,0.26106,2437.1,2436.9,0.2048]
[1750968355498,1.787,2437.2,2436.9,0.2048]
[1750968357906,0.7616,2436.7,2436.5,0.2048]
[1750968358105,6.65056414,2436.7,2435.9,7.86743]
[1750968358309,2.5466,2436.7,2436.4,0.2048]
[1750968359089,0.7616,2436.7,2436.4,0.2048]
[1750968359321,0.2048,2436.8,2436.4,0.2048]
[1750968359619,1.785,2436.7,2436.4,0.2048]
[1750968360194,0.7526,2437.0,2436.4,0.8272]
[1750968360397,0.7546,2437.2,2436.6,0.2048]
[1750968360596,4.04593958,2437.2,2436.8,0.2048]
[1750968361427,0.7546,2437.2,2436.8,0.2048]
[1750968361629,0.001,2437.2,2437.0,0.2048]
[1750968362207,4.10323745,2437.1,2437.0,0.2048]
[1750968362640,0.001,2437.2,2436.4,10.8272]
[1750968362805,4.10408125,2437.2,2436.9,0.2048]
[1750968363119,0.58900813,2437.1,2436.9,0.2048]
[1750968363324,4.69233391,2437.1,2436.9,0.2048]
[1750968363638,0.58900813,2437.1,2436.9,0.2048]
[1750968363809,4.69233394,2437.1,2436.9,0.2048]
[1750968364144,0.001,2437.3,2437.1,30.0]
[1750968364435,0.21417119,2438.8,2438.0,40.7445]
[1750968364623,0.7665,2439.9,2438.7,10.0]
[1750968364826,0.43075599,2440.1,2438.8,0.7445]
[1750968365010,4.09898927,2439.7,2438.8,0.7445]
[1750968365209,1.785,2440.0,2438.8,0.7445]
[1750968365210,4.09923264,2439.5,2438.8,0.7445]
[1750968365433,1.785,2439.5,2438.5,0.7445]
[1750968366203,0.7665,2439.8,2438.6,10.55]
[1750968366427,0.001,2440.4,2439.0,10.0]
[1750968366428,4.92574104,2440.2,2439.0,10.0]
[1750968366726,0.8276,2440.2,2439.0,10.0]
[1750968367104,10.8276,2440.2,2439.0,10.0]
[1750968367304,14.92573283,2440.2,2439.0,10.0]
[1750968367607,10.8276,2440.2,2439.0,10.0]
[1750968367826,14.92563022,2440.2,2439.0,10.0]
[1750968368010,10.8276,2440.2,2439.0,10.0]
[1750968369135,0.8276,2440.2,2439.0,10.0]
[1750968369327,5.95988385,2440.3,2439.2,10.7688]
[1750968369529,1.862,2440.3,2439.2,0.7688]
[1750968369935,1.862,2440.3,2439.2,10.7688]
[1750968370247,1.862,2440.3,2439.2,11.87697789]
[1750968370466,0.001,2440.4,2439.2,11.87697789]
[1750968370605,0.001,2440.4,2439.3,10.7906]
[1750968371401,4.09872047,2440.4,2439.3,10.7906]
[1750968371743,0.001,2440.4,2439.3,10.7906]
[1750968372238,4.09879834,2440.4,2439.3,10.7906]
[1750968372413,0.001,2440.4,2439.3,10.7906]
[1750968373932,0.001,2440.4,2439.3,0.7906]
[1750968374114,0.001,2440.4,2439.3,10.7906]
[1750968374310,4.09811416,2440.2,2439.9,0.2048]
[1750968374511,4.91107592,2440.0,2439.2,1.10817789]
[1750968374709,2.6726,2440.0,2439.2,1.10817789]
[1750968374934,0.2167226,2440.1,2439.3,20.7956]
[1750968375134,0.2167226,2440.1,2439.5,10.0]
[1750968375315,0.2167226,2440.1,2439.6,1.0]
[1750968375518,0.2167226,2440.1,2439.5,10.0]
[1750968375728,0.2167226,2440.1,2439.3,11.79813576]
[1750968375925,0.2167226,2440.1,2439.6,0.7956]
[1750968376358,0.2167226,2440.1,2439.9,10.0]
[1750968376512,0.2167226,2440.1,2439.9,10.7956]
[1750968376713,0.2167226,2440.1,2440.0,2.347203]
[1750968376945,0.2167226,2440.1,2440.0,46.44556365]
[1750968377214,0.2167226,2440.1,2440.0,47.79116365]
[1750968377516,0.2167226,2440.1,2440.0,22.68126365]
[1750968377921,0.2167226,2440.1,2440.0,13.692803]
[1750968378121,0.2167226,2440.1,2440.0,16.070903]
[1750968378316,0.2167226,2440.1,2440.0,21.6957]
[1750968379137,0.2167226,2440.1,2440.0,22.28894]
[1750968379321,0.2167226,2440.1,2440.0,21.8956]
[1750968379941,0.2167226,2440.1,2440.0,21.9016]
[1750968380239,0.2167226,2440.1,2440.0,56.82197265]
[1750968381322,0.001,2440.4,2440.0,56.82197265]
[1750968381323,0.001,2440.4,2440.3,13.856]
[1750968381641,0.001,2440.4,2440.3,14.9031]
[1750968382226,0.001,2440.4,2440.3,21.8231]
[1750968382627,0.001,2440.4,2440.3,22.13291986]
[1750968382828,0.001,2440.4,2440.3,25.24258481]
[1750968383014,0.001,2440.4,2440.3,18.32258481]
[1750968383217,0.001,2440.4,2440.3,22.19348481]
[1750968383629,0.001,2440.4,2440.3,20.02466495]
[1750968384839,0.001,2440.4,2440.3,20.22946495]
[1750968385157,0.001,2441.0,2440.5,0.7928]
[1750968385346,0.001,2441.0,2440.7,10.0]
[1750968385933,0.001,2441.0,2440.8,6.957]
[1750968387750,0.001,2441.0,2440.6,13.6662697]
[1750968387957,0.001,2441.0,2440.7,6.957]
[1750968388333,0.001,2441.0,2440.9,33.958918]
[1750968388541,0.001,2441.0,2440.9,43.02598862]
[1750968389352,4.84901475,2442.9,2441.3,4.09608289]
[1750968389656,1.859,2442.7,2441.7,10.0]
[1750968390056,0.7555,2442.4,2441.2,10.8148]
[1750968390232,0.7555,2442.4,2441.4,10.0]
[1750968390233,4.84987735,2442.4,2441.4,10.0]
[1750968390438,0.7555,2442.4,2441.4,10.0]
[1750968390853,4.84992292,2442.4,2441.4,10.0]
[1750968391402,0.8238,2442.2,2441.4,10.0]
[1750968391583,0.8238,2442.2,2441.3,1.08148]
[1750968391891,0.55,2442.1,2441.2,6.972]
[1750968392061,12.408,2442.1,2441.2,6.972]
[1750968392261,16.50283668,2442.1,2441.2,6.972]
[1750968392459,16.50283668,2442.1,2440.8,6.982]
[1750968392460,0.55,2441.9,2440.8,6.982]
[1750968392662,4.09536474,2441.8,2440.9,0.9596597]
[1750968392862,4.09536474,2441.8,2440.9,2.16276284]
[1750968393065,4.64523676,2441.9,2441.0,0.9596597]
[1750968393275,4.64523676,2441.9,2441.1,0.9596597]
[1750968393484,0.55,2441.9,2441.2,0.9596597]
[1750968393691,1.858,2441.8,2441.3,0.9596597]
[1750968393977,1.858,2441.8,2441.0,1.20310314]
[1750968394184,1.858,2441.8,2441.1,0.96101586]
[1750968394389,4.09578582,2441.6,2441.1,2.164119]
[1750968394556,0.8024,2441.4,2441.2,0.96101586]
[1750968394886,4.09646491,2441.2,2440.7,1.20310314]
[1750968395084,0.2048,2440.9,2440.7,1.20310314]
[1750968395261,4.91274605,2441.2,2440.6,1.20310314]
[1750968395262,0.8164,2441.2,2440.6,1.20310314]
[1750968395462,0.2048,2440.7,2440.5,1.63307537]
[1750968395786,1.858,2440.6,2440.5,1.20636659]
[1750968396159,0.2048,2440.7,2440.5,1.20636659]
[1750968396357,0.2048,2440.7,2440.4,1.20636659]
[1750968396358,1.858,2440.6,2440.4,1.20636659]
[1750968396581,0.2048,2440.7,2440.5,1.20636659]
[1750968397480,1.911,2440.6,2440.5,1.20636659]
[1750968397664,0.2048,2440.7,2440.5,1.20636659]
[1750968397856,1.911,2440.6,2440.5,1.20636659]
[1750968398460,1.911,2440.6,2440.4,1.63307537]
[1750968398672,1.911,2440.5,2440.4,1.63307537]
[1750968398871,0.2048,2440.7,2440.4,1.63307537]
[1750968399194,1.911,2440.6,2440.4,1.20915187]
[1750968399407,1.911,2440.6,2440.3,1.20915187]
[1750968399709,1.911,2440.6,2440.2,0.2048]
[1750968399864,0.2048,2440.7,2440.2,1.34619519]
[1750968400066,1.911,2440.6,2440.2,0.2048]
[1750968400303,1.911,2440.6,2440.2,1.41395187]
[1750968402166,0.2048,2440.7,2440.2,1.41395187]
[1750968404406,0.2048,2440.7,2440.3,1.20915187]
[1750968404984,2.1158,2440.7,2440.3,1.20915187]
[1750968406206,10.79,2441.3,2440.3,1.20915187]
[1750968406207,0.7621,2441.5,2440.4,2.03245187]
[1750968406507,0.7621,2441.5,2440.6,1.20915187]
[1750968406810,0.8233,2442.1,2440.8,0.7693]
[1750968407008,1.911,2442.0,2440.9,1.07693]
[1750968407178,0.8233,2442.1,2440.9,1.07693]
[1750968407379,1.911,2442.0,2441.0,10.0]
[1750968407804,0.8233,2442.1,2440.9,1.07693]
[1750968407988,1.911,2442.0,2441.0,0.59431376]
[1750968408190,1.911,2442.0,2440.9,8.04693]
[1750968408510,1.911,2442.0,2441.0,10.0]
[1750968408911,6.00601906,2442.0,2441.0,10.0]
[1750968409213,1.911,2442.0,2441.0,10.0]
[1750968409418,1.911,2442.0,2441.0,12.341]
[1750968409584,2.18443,2442.0,2441.1,2.039093]
[1750968409923,4.09562325,2441.7,2440.9,1.07693]
[1750968410088,4.09576219,2441.6,2440.6,1.20915187]
[1750968410410,1.911,2441.5,2440.5,19.01515187]
[1750968410887,6.00686367,2441.5,2440.5,19.01515187]
[1750968411091,1.911,2441.5,2440.5,19.01515187]
[1750968411292,1.911,2441.5,2440.6,2.06482272]
[1750968411892,1.911,2441.5,2440.7,1.20915187]
[1750968412509,0.7892,2441.4,2440.7,1.20915187]
[1750968412714,0.7892,2441.4,2440.8,1.20915187]
[1750968413217,4.88529645,2441.4,2440.8,1.20915187]
[1750968413418,5.97449812,2441.4,2440.8,1.20915187]
[1750968413795,1.87840167,2441.4,2440.8,1.20915187]
[1750968414116,4.88532132,2441.4,2440.8,1.20915187]
[1750968414293,0.7892,2441.4,2440.8,1.20915187]
[1750968414497,0.7892,2441.4,2440.9,1.20915187]
[1750968414698,4.88528835,2441.4,2440.9,1.20915187]
[1750968414927,4.09626281,2441.3,2440.9,1.20915187]
[1750968415229,6.00726281,2441.3,2440.9,1.20915187]
[1750968415400,1.911,2441.3,2440.9,1.20915187]
[1750968415714,0.7892,2441.2,2440.9,1.20915187]
[1750968415908,4.88555299,2441.2,2440.9,1.20915187]
[1750968416296,0.2048,2441.1,2440.9,1.20915187]
[1750968417309,0.2048,2441.1,2440.8,1.20915187]
[1750968417510,0.2048,2441.1,2440.9,1.20915187]
[1750968417813,0.2048,2441.1,2440.8,1.20915187]
[1750968418318,1.911,2441.1,2440.9,1.20915187]
[1750968418908,0.2048,2441.0,2440.7,1.20915187]
[1750968419123,0.2048,2441.0,2440.6,3.47877459]
[1750968419492,0.2048,2441.0,2440.6,1.41395187]
[1750968420094,0.7892,2440.9,2440.6,1.20915187]
[1750968420307,0.2048,2440.8,2440.6,1.20915187]
[1750968421703,0.7892,2440.9,2440.6,1.20915187]
[1750968421901,1.911,2440.8,2440.6,1.20915187]
[1750968422295,0.7892,2440.9,2440.5,1.20915187]
[1750968422504,0.55,2441.5,2440.6,1.20915187]
[1750968422505,1.911,2440.8,2440.6,1.20915187]
[1750968422726,1.911,2440.9,2440.7,1.20915187]
[1750968423314,0.7685,2441.2,2440.7,1.20915187]
[1750968423517,1.911,2441.1,2440.7,1.20915187]
[1750968423696,1.911,2441.1,2440.8,1.20915187]
[1750968423895,0.7685,2441.2,2440.7,1.20915187]
[1750968424122,0.7685,2441.2,2440.7,1.49337459]